fUST/lending_fUST_20250827
["ID","MTS","AMOUNT","RATE_DAILY","PERIOD"]
[381630590,1756299121318,-464.82623605,0.00024383,2]
[381630591,1756299121327,-480.0,0.00024383,2]
[381630592,1756299121336,-901.06,0.00024383,2]
[381630593,1756299121345,-480.0,0.00024383,2]
[381630594,1756299121355,-480.0,0.00024383,2]
[381630595,1756299121364,-1290.3,0.00024383,2]
[381630596,1756299121373,-1110.35,0.00024383,2]
[381630597,1756299121382,-911.51,0.00024383,2]
[381630598,1756299121391,-711.28,0.00024383,2]
[381630599,1756299121401,-492.57,0.00024383,2]
[381630600,1756299121410,-3483.75287015,0.00024389,2]
[381630601,1756299121419,-7731.92,0.000244,7]
[381630602,1756299121428,-160.0,0.000244,3]
[381630603,1756299121439,-417.15472785,0.000244,3]
[381630604,1756299121449,-845.298898,0.000244,3]
[381630605,1756299121458,-12707.75045307,0.000244,3]
[381630606,1756299121468,-216.14835892,0.000244,3]
[381630607,1756299121478,-529.56067766,0.000244,3]
[381630608,1756299121487,-160.0,0.000244,3]
[381630609,1756299121496,-160.0,0.000244,3]
[381630610,1756299121505,-160.0,0.000244,3]
[381630611,1756299121514,-160.0,0.000244,3]
[381630612,1756299121523,-160.0,0.000244,3]
[381630613,1756299121532,-168.0,0.0002443,2]
[381630614,1756299121541,-193.78236454,0.00024481,2]
[381630615,1756299121550,-774.35432869,0.00024481,2]
[381630616,1756299121560,-560.0,0.00024536,2]
[381630617,1756299121569,-179.3945173,0.00024557,79]
[381630618,1756299121578,-168.0,0.00024561,2]
[381630619,1756299121587,-3000.0,0.00024612,2]
[381630620,1756299121596,-500.0,0.00024612,2]
[381630621,1756299121605,-1015.0,0.00024654,2]
[381630622,1756299121614,-351.03587695,0.00024657,2]
[381630623,1756299121624,-480.0,0.00024657,2]
[381630624,1756299121633,-480.0,0.00024657,2]
[381630625,1756299121643,-480.0,0.00024657,2]
[381630626,1756299121651,-480.0,0.00024657,2]
[381630627,1756299121661,-560.73323632,0.00024657,2]
[381630628,1756299121670,-480.0,0.00024657,2]
[381630629,1756299121681,-493.86,0.00024657,2]
[381630630,1756299121692,-480.0,0.00024657,2]
[381630631,1756299121701,-480.0,0.00024657,2]
[381630632,1756299121711,-480.0,0.00024657,2]
[381630633,1756299121720,-562.7,0.00024657,2]
[381630634,1756299121731,-524.95,0.00024657,2]
[381630635,1756299121740,-480.0,0.00024657,2]
[381630636,1756299121749,-538.52,0.00024657,2]
[381630637,1756299121761,-550.62,0.00024657,2]
[381630638,1756299121770,-480.0,0.00024657,2]
[381630639,1756299121779,-480.0,0.00024657,2]
[381630640,1756299121789,-576.16,0.00024657,2]
[381630641,1756299121798,-662.66,0.00024657,2]
[381630642,1756299121807,-582.51,0.00024657,2]
[381630643,1756299121816,-480.0,0.00024657,2]
[381630644,1756299121825,-500.0,0.00024657,2]
[381630645,1756299121834,-480.0,0.00024657,2]
[381630646,1756299121844,-480.0,0.00024657,2]
[381630647,1756299121854,-548.86991279,0.00024657,2]
[381630648,1756299121863,-350.62808794,0.00024657,2]
[381630649,1756299121872,-158.73999957,0.00024657,2]
[381630650,1756299121882,-606.2,0.00024657,2]
[381630651,1756299121892,-706.9,0.00024657,2]
[381630652,1756299121901,-480.0,0.00024657,2]
[381630653,1756299121910,-882.63,0.00024657,2]
[381630654,1756299121920,-480.0,0.00024657,2]
[381630655,1756299121930,-191.60325176,0.00024657,2]
[381630656,1756299121940,-480.0,0.00024657,2]
[381630657,1756299121949,-714.33,0.00024657,2]
[381630658,1756299121958,-612.47,0.00024657,2]
[381630659,1756299121967,-480.0,0.00024657,2]
[381630660,1756299121977,-480.0,0.00024657,2]
[381630661,1756299121986,-480.0,0.00024657,2]
[381630662,1756299121995,-480.0,0.00024657,2]
[381630663,1756299122004,-480.0,0.00024657,2]
[381630664,1756299122014,-480.0,0.00024657,2]
[381630665,1756299122023,-512.19,0.00024657,2]
[381630666,1756299122032,-509.06,0.00024657,2]
[381630667,1756299122041,-612.82,0.00024657,2]
[381630668,1756299122050,-627.14,0.00024657,2]
[381630669,1756299122059,-624.19,0.00024657,2]
[381630670,1756299122068,-481.22,0.00024657,2]
[381630671,1756299122078,-528.91,0.00024657,2]
[381630672,1756299122088,-608.41,0.00024657,2]
[381630673,1756299122097,-480.0,0.00024657,2]
[381630674,1756299122107,-547.44,0.00024657,2]
[381630675,1756299122116,-480.0,0.00024657,2]
[381630676,1756299122125,-480.0,0.00024657,2]
[381630677,1756299122135,-480.0,0.00024657,2]
[381630678,1756299122144,-967.44,0.00024657,2]
[381630679,1756299122154,-522.91,0.00024657,2]
[381630680,1756299122163,-480.0,0.00024657,2]
[381630681,1756299122173,-486.45,0.00024657,2]
[381630682,1756299122182,-624.58,0.00024657,2]
[381630683,1756299122192,-480.0,0.00024657,2]
[381630684,1756299122202,-480.0,0.00024657,2]
[381630685,1756299122211,-480.0,0.00024657,2]
[381630686,1756299122221,-1513.62,0.00024657,2]
[381630687,1756299122230,-740.6,0.00024657,2]
[381630688,1756299122240,-1456.95,0.00024657,2]
[381630689,1756299122249,-561.33,0.00024657,2]
[381630690,1756299122258,-480.0,0.00024657,2]
[381630691,1756299122267,-1610.42,0.00024657,2]
[381630692,1756299122276,-507.15,0.00024657,2]
[381630693,1756299122286,-480.0,0.00024657,2]
[381630694,1756299122296,-480.0,0.00024657,2]
[381630695,1756299122306,-628.11,0.00024657,2]
[381630696,1756299122316,-569.45,0.00024657,2]
[381630697,1756299122326,-480.0,0.00024657,2]
[381630698,1756299122335,-1196.37,0.00024657,2]
[381630699,1756299122345,-1184.81,0.00024657,2]
[381630700,1756299122355,-480.0,0.00024657,2]
[381630701,1756299122365,-595.51,0.00024657,2]
[381630702,1756299122374,-974.71,0.00024657,2]
[381630703,1756299122385,-680.85,0.00024657,2]
[381630704,1756299122394,-385.18764391,0.00024657,2]
[381630705,1756299122404,-642.37,0.00024657,2]
[381630706,1756299122413,-480.0,0.00024657,2]
[381630707,1756299122423,-568.85595606,0.00024657,2]
[381630708,1756299122432,-480.0,0.00024657,2]
[381630709,1756299122443,-620.04,0.00024657,2]
[381630710,1756299122453,-462.36128613,0.00024657,2]
[381630711,1756299122463,-1799.04,0.00024657,2]
[381630712,1756299122472,-888.29,0.00024657,2]
[381630713,1756299122482,-511.13,0.00024657,2]
[381630714,1756299122491,-615.79,0.00024657,2]
[381630715,1756299122501,-1249.5,0.00024657,2]
[381630716,1756299122511,-837.84,0.00024657,2]
[381630717,1756299122520,-480.0,0.00024657,2]
[381630718,1756299122530,-488.18,0.00024657,2]
[381630719,1756299122539,-841.78,0.00024657,2]
[381630720,1756299122549,-818.54,0.00024657,2]
[381630721,1756299122559,-634.58,0.00024657,2]
[381630722,1756299122569,-480.0,0.00024657,2]
[381630723,1756299122579,-480.0,0.00024657,2]
[381630724,1756299122588,-350.77,0.00024657,2]
[381630725,1756299122599,-1132.23,0.00024657,2]
[381630726,1756299122608,-480.0,0.00024657,2]
[381630727,1756299122618,-480.0,0.00024657,2]
[381630728,1756299122629,-630.18,0.00024657,2]
[381630729,1756299122638,-1020.11,0.00024657,2]
[381630730,1756299122648,-987.21,0.00024657,2]
[381630731,1756299122659,-480.0,0.00024657,2]
[381630732,1756299122669,-480.0,0.00024657,2]
[381630733,1756299122679,-480.0,0.00024657,2]
[381630734,1756299122696,-480.0,0.00024657,2]
[381630735,1756299122708,-561.06,0.00024657,2]
[381630736,1756299122717,-544.78,0.00024657,2]
[381630737,1756299122727,-655.34,0.00024657,2]
[381630738,1756299122739,-660.63,0.00024657,2]
[381630739,1756299122748,-935.85,0.00024657,2]
[381630740,1756299122758,-1338.48,0.00024657,2]
[381630741,1756299122769,-480.0,0.00024657,2]
[381630742,1756299122779,-480.0,0.00024657,2]
[381630743,1756299122789,-775.56,0.00024657,2]
[381630744,1756299122799,-651.24,0.00024657,2]
[381630745,1756299122808,-480.0,0.00024657,2]
[381630746,1756299122818,-1057.73,0.00024657,2]
[381630747,1756299122828,-761.3,0.00024657,2]
[381630748,1756299122838,-631.68,0.00024657,2]
[381630749,1756299122847,-520.4,0.00024657,2]
[381630750,1756299122857,-628.89,0.00024657,2]
[381630751,1756299122867,-733.13,0.00024657,2]
[381630752,1756299122877,-480.0,0.00024657,2]
[381630753,1756299122888,-480.0,0.00024657,2]
[381630754,1756299122898,-1793.19,0.00024657,2]
[381630755,1756299122908,-480.0,0.00024657,2]
[381630756,1756299122919,-1312.96,0.00024657,2]
[381630757,1756299122929,-480.0,0.00024657,2]
[381630758,1756299122941,-480.0,0.00024657,2]
[381630759,1756299122951,-594.15,0.00024657,2]
[381630760,1756299122967,-628.83,0.00024657,2]
[381630761,1756299122982,-480.0,0.00024657,2]
[381630762,1756299122991,-480.0,0.00024657,2]
[381630763,1756299123001,-480.0,0.00024657,2]
[381630764,1756299123011,-902.71,0.00024657,2]
[381630765,1756299123022,-591.53,0.00024657,2]
[381630766,1756299123032,-480.0,0.00024657,2]
[381630767,1756299123042,-480.0,0.00024657,2]
[381630768,1756299123052,-480.0,0.00024657,2]
[381630769,1756299123062,-818.78,0.00024657,2]
[381630770,1756299123072,-480.0,0.00024657,2]
[381630771,1756299123083,-858.98,0.00024657,2]
[381630772,1756299123092,-480.0,0.00024657,2]
[381630773,1756299123102,-746.51,0.00024657,2]
[381630774,1756299123112,-360.79766305,0.00024657,2]
[381630775,1756299123121,-480.0,0.00024657,2]
[381630776,1756299123131,-480.0,0.00024657,2]
[381630777,1756299123140,-625.32,0.00024657,2]
[381630778,1756299123150,-1365.1,0.00024657,2]
[381630779,1756299123160,-480.0,0.00024657,2]
[381630780,1756299123170,-480.0,0.00024657,2]
[381630781,1756299123181,-624.5,0.00024657,2]
[381630782,1756299123193,-497.34,0.00024657,2]
[381630783,1756299123203,-497.34,0.00024657,2]
[381630784,1756299123214,-1152.04,0.00024657,2]
[381630785,1756299123224,-2015.87,0.00024657,2]
[381630786,1756299123234,-579.93,0.00024657,2]
[381630787,1756299123244,-599.34,0.00024657,2]
[381630788,1756299123254,-810.1,0.00024657,2]
[381630789,1756299123265,-793.74,0.00024657,2]
[381630790,1756299123275,-1099.58,0.00024657,2]
[381630791,1756299123285,-480.0,0.00024657,2]
[381630792,1756299123295,-480.0,0.00024657,2]
[381630793,1756299123305,-480.0,0.00024657,2]
[381630794,1756299123315,-480.0,0.00024657,2]
[381630795,1756299123325,-736.43,0.00024657,2]
[381630796,1756299123336,-1838.61,0.00024657,2]
[381630797,1756299123346,-898.68,0.00024657,2]
[381630798,1756299123356,-480.0,0.00024657,2]
[381630799,1756299123366,-480.0,0.00024657,2]
[381630800,1756299123376,-916.71,0.00024657,2]
[381630801,1756299123387,-480.0,0.00024657,2]
[381630802,1756299123397,-480.0,0.00024657,2]
[381630803,1756299123408,-480.0,0.00024657,2]
[381630804,1756299123418,-521.43,0.00024657,2]
[381630805,1756299123429,-480.0,0.00024657,2]
[381630806,1756299123441,-539.62,0.00024657,2]
[381630807,1756299123451,-727.24,0.00024657,2]
[381630808,1756299123462,-1170.25,0.00024657,2]
[381630809,1756299123473,-480.0,0.00024657,2]
[381630810,1756299123484,-1026.14,0.00024657,2]
[381630811,1756299123494,-909.76,0.00024657,2]
[381630812,1756299123504,-151.61973375,0.00024657,2]
[381630813,1756299123514,-480.0,0.00024657,2]
[381630814,1756299123524,-480.0,0.00024657,2]
[381630815,1756299123534,-962.75,0.00024657,2]
[381630816,1756299123545,-711.06,0.00024657,2]
[381630817,1756299123556,-1249.43,0.00024657,2]
[381630818,1756299123566,-480.0,0.00024657,2]
[381630819,1756299123576,-480.0,0.00024657,2]
[381630820,1756299123587,-480.0,0.00024657,2]
[381630821,1756299123598,-480.0,0.00024657,2]
[381630822,1756299123608,-670.56,0.00024657,2]
[381630823,1756299123618,-780.75,0.00024657,2]
[381630824,1756299123629,-480.0,0.00024657,2]
[381630825,1756299123639,-633.62,0.00024657,2]
[381630826,1756299123650,-638.03,0.00024657,2]
[381630827,1756299123660,-480.0,0.00024657,2]
[381630828,1756299123670,-886.17,0.00024657,2]
[381630829,1756299123682,-1346.67,0.00024657,2]
[381630830,1756299123698,-677.64,0.00024657,2]
[381630831,1756299123708,-480.0,0.00024657,2]
[381630832,1756299123718,-480.0,0.00024657,2]
[381630833,1756299123728,-480.0,0.00024657,2]
[381630834,1756299123740,-741.13,0.00024657,2]
[381630835,1756299123750,-952.53,0.00024657,2]
[381630836,1756299123760,-480.0,0.00024657,2]
[381630837,1756299123771,-635.74,0.00024657,2]
[381630838,1756299123781,-480.0,0.00024657,2]
[381630839,1756299123792,-480.0,0.00024657,2]
[381630840,1756299123803,-574.03,0.00024657,2]
[381630841,1756299123815,-508.7,0.00024657,2]
[381630842,1756299123826,-687.48,0.00024657,2]
[381630843,1756299123836,-480.0,0.00024657,2]
[381630844,1756299123847,-1268.98,0.00024657,2]
[381630845,1756299123858,-480.0,0.00024657,2]
[381630846,1756299123869,-856.71,0.00024657,2]
[381630847,1756299123880,-480.0,0.00024657,2]
[381630848,1756299123891,-6495.25,0.00024657,2]
[381630849,1756299123901,-636.86,0.00024657,2]
[381630850,1756299123912,-480.0,0.00024657,2]
[381630851,1756299123923,-905.99,0.00024657,2]
[381630852,1756299123933,-524.69,0.00024657,2]
[381630853,1756299123947,-480.0,0.00024657,2]
[381630854,1756299123957,-486.07,0.00024657,2]
[381630855,1756299123968,-1458.92,0.00024657,2]
[381630856,1756299123978,-837.39,0.00024657,2]
[381630857,1756299123989,-624.44,0.00024657,2]
[381630858,1756299124000,-1847.92,0.00024657,2]
[381630859,1756299124011,-771.49,0.00024657,2]
[381630860,1756299124021,-1529.63,0.00024657,2]
[381630861,1756299124032,-8247.96,0.00024657,2]
[381630862,1756299124042,-3400.62,0.00024657,2]
[381630863,1756299124052,-583.48,0.00024657,2]
[381630864,1756299124063,-480.0,0.00024657,2]
[381630865,1756299124073,-480.0,0.00024657,2]
[381630866,1756299124083,-480.0,0.00024657,2]
[381630867,1756299124094,-480.0,0.00024657,2]
[381630868,1756299124105,-1076.84,0.00024657,2]
[381630869,1756299124115,-1635.61,0.00024657,2]
[381630870,1756299124125,-564.33,0.00024657,2]
[381630871,1756299124135,-480.0,0.00024657,2]
[381630872,1756299124146,-740.19,0.00024657,2]
[381630873,1756299124157,-1200.96,0.00024657,2]
[381630874,1756299124168,-1559.95,0.00024657,2]
[381630875,1756299124179,-1003.43,0.00024657,2]
[381630876,1756299124189,-480.0,0.00024657,2]
[381630877,1756299124199,-655.25,0.00024657,2]
[381630878,1756299124210,-1004.24,0.00024657,2]
[381630879,1756299124221,-1160.02,0.00024657,2]
[381630880,1756299124231,-626.39,0.00024657,2]
[381630881,1756299124241,-504.38,0.00024657,2]
[381630882,1756299124251,-480.0,0.00024657,2]
[381630883,1756299124261,-748.48,0.00024657,2]
[381630884,1756299124272,-868.0,0.00024657,2]
[381630885,1756299124282,-632.12,0.00024657,2]
[381630886,1756299124292,-656.18,0.00024657,2]
[381630887,1756299124302,-480.0,0.00024657,2]
[381630888,1756299124312,-480.0,0.00024657,2]
[381630889,1756299124322,-480.0,0.00024657,2]
[381630890,1756299124332,-515.28,0.00024657,2]
[381630891,1756299124342,-639.39,0.00024657,2]
[381630892,1756299124353,-1553.38,0.00024657,2]
[381630893,1756299124363,-860.92,0.00024657,2]
[381630894,1756299124554,-707.77,0.00024657,2]
[381630895,1756299124584,-480.0,0.00024657,2]
[381630896,1756299124594,-480.0,0.00024657,2]
[381630897,1756299124604,-507.0,0.00024657,2]
[381630898,1756299124614,-621.34,0.00024657,2]
[381630899,1756299124624,-480.0,0.00024657,2]
[381630900,1756299124633,-961.78,0.00024657,2]
[381630901,1756299124643,-2093.04,0.00024657,2]
[381630902,1756299124652,-480.0,0.00024657,2]
[381630903,1756299124662,-481.67,0.00024657,2]
[381630904,1756299124672,-480.0,0.00024657,2]
[381630905,1756299124682,-861.82,0.00024657,2]
[381630906,1756299124697,-480.0,0.00024657,2]
[381630907,1756299124707,-906.46,0.00024657,2]
[381630908,1756299124716,-500.0,0.00024657,2]
[381630909,1756299124725,-1944.4,0.00024657,2]
[381630910,1756299124737,-480.0,0.00024657,2]
[381630911,1756299124747,-480.0,0.00024657,2]
[381630912,1756299124757,-480.0,0.00024657,2]
[381630913,1756299124770,-756.21,0.00024657,2]
[381630914,1756299124780,-691.47,0.00024657,2]
[381630915,1756299124791,-669.41,0.00024657,2]
[381630916,1756299124801,-822.12,0.00024657,2]
[381630917,1756299124811,-664.01,0.00024657,2]
[381630918,1756299124829,-5734.46,0.00024657,2]
[381630919,1756299124842,-480.0,0.00024657,2]
[381630920,1756299124852,-323.37968274,0.00024657,2]
[381630921,1756299124863,-480.0,0.00024657,2]
[381630922,1756299124874,-480.0,0.00024657,2]
[381630923,1756299124884,-1472.58,0.00024657,2]
[381630924,1756299124894,-480.0,0.00024657,2]
[381630925,1756299124904,-425.88897949,0.00024657,2]
[381630926,1756299124914,-480.0,0.00024657,2]
[381630927,1756299124924,-1010.62,0.00024657,2]
[381630928,1756299124934,-746.58,0.00024657,2]
[381630929,1756299124948,-945.67,0.00024657,2]
[381630930,1756299124958,-820.03,0.00024657,2]
[381630931,1756299124968,-2419.42,0.00024657,2]
[381630932,1756299124977,-2003.06,0.00024657,2]
[381630933,1756299124987,-712.33,0.00024657,2]
[381630934,1756299124997,-632.8,0.00024657,2]
[381630935,1756299125007,-533.90851467,0.00024657,2]
[381630936,1756299125016,-1302.43,0.00024657,2]
[381630937,1756299125026,-879.19,0.00024657,2]
[381630938,1756299125036,-2358.04,0.00024657,2]
[381630939,1756299125046,-626.24,0.00024657,2]
[381630940,1756299125055,-480.0,0.00024657,2]
[381630941,1756299125066,-571.94,0.00024657,2]
[381630942,1756299125076,-1028.29,0.00024657,2]
[381630943,1756299125086,-480.0,0.00024657,2]
[381630944,1756299125096,-760.04,0.00024657,2]
[381630945,1756299125106,-480.0,0.00024657,2]
[381630946,1756299125115,-480.0,0.00024657,2]
[381630947,1756299125125,-534.07,0.00024657,2]
[381630948,1756299125136,-480.0,0.00024657,2]
[381630949,1756299125145,-773.62,0.00024657,2]
[381630950,1756299125156,-480.0,0.00024657,2]
[381630951,1756299125167,-480.0,0.00024657,2]
[381630952,1756299125177,-579.37,0.00024657,2]
[381630953,1756299125190,-481.34,0.00024657,2]
[381630954,1756299125199,-480.0,0.00024657,2]
[381630955,1756299125209,-689.04,0.00024657,2]
[381630956,1756299125219,-527.91372284,0.00024657,2]
[381630957,1756299125229,-558.49,0.00024657,2]
[381630958,1756299125238,-3533.68,0.00024657,2]
[381630959,1756299125248,-480.0,0.00024657,2]
[381630960,1756299125258,-1078.58,0.00024657,2]
[381630961,1756299125268,-480.0,0.00024657,2]
[381630962,1756299125277,-877.94,0.00024657,2]
[381630963,1756299125287,-657.92,0.00024657,2]
[381630964,1756299125296,-541.91,0.00024657,2]
[381630965,1756299125306,-680.84,0.00024657,2]
[381630966,1756299125315,-1306.03,0.00024657,2]
[381630967,1756299125325,-4136.98,0.00024657,2]
[381630968,1756299125335,-480.0,0.00024657,2]
[381630969,1756299125344,-611.17,0.00024657,2]
[381630970,1756299125355,-1546.75,0.00024657,2]
[381630971,1756299125365,-745.97,0.00024657,2]
[381630972,1756299125375,-483.6,0.00024657,2]
[381630973,1756299125385,-1237.23,0.00024657,2]
[381630974,1756299125395,-2253.99,0.00024657,2]
[381630975,1756299125404,-4927.91,0.00024657,2]
[381630976,1756299125414,-480.0,0.00024657,2]
[381630977,1756299125424,-727.85,0.00024657,2]
[381630978,1756299125433,-711.45,0.00024657,2]
[381630979,1756299125442,-681.98,0.00024657,2]
[381630980,1756299125452,-2444.85,0.00024657,2]
[381630981,1756299125462,-1897.45,0.00024657,2]
[381630982,1756299125471,-2263.07,0.00024657,2]
[381630983,1756299125480,-4617.09,0.00024657,2]
[381630984,1756299125490,-1837.84,0.00024657,2]
[381630985,1756299125499,-480.0,0.00024657,2]
[381630986,1756299125509,-867.08,0.00024657,2]
[381630987,1756299125519,-480.0,0.00024657,2]
[381630988,1756299125529,-1079.7,0.00024657,2]
[381630989,1756299125539,-2907.91,0.00024657,2]
[381630990,1756299125550,-480.0,0.00024657,2]
[381630991,1756299125559,-1354.76,0.00024657,2]
[381630992,1756299125569,-2286.82,0.00024657,2]
[381630993,1756299125579,-576.96,0.00024657,2]
[381630994,1756299125589,-480.0,0.00024657,2]
[381630995,1756299125598,-1707.9,0.00024657,2]
[381630996,1756299125608,-812.92,0.00024657,2]
[381630997,1756299125618,-480.0,0.00024657,2]
[381630998,1756299125628,-739.93,0.00024657,2]
[381630999,1756299125638,-1062.67,0.00024657,2]
[381631000,1756299125648,-3535.34,0.00024657,2]
[381631001,1756299125658,-679.72,0.00024657,2]
[381631002,1756299125667,-550.73,0.00024657,2]
[381631003,1756299125677,-695.89,0.00024657,2]
[381631004,1756299125693,-577.42,0.00024657,2]
[381631005,1756299125704,-680.83,0.00024657,2]
[381631006,1756299125715,-600.93,0.00024657,2]
[381631007,1756299125725,-829.46,0.00024657,2]
[381631008,1756299125736,-1995.59,0.00024657,2]
[381631009,1756299125746,-1631.46,0.00024657,2]
[381631010,1756299125757,-1590.45,0.00024657,2]
[381631011,1756299125767,-480.0,0.00024657,2]
[381631012,1756299125777,-539.05,0.00024657,2]
[381631013,1756299125787,-712.28,0.00024657,2]
[381631014,1756299125798,-638.72,0.00024657,2]
[381631015,1756299125808,-266.71,0.00024657,2]
[381631016,1756299125818,-480.0,0.00024657,2]
[381631017,1756299125827,-480.0,0.00024657,2]
[381631018,1756299125837,-755.02,0.00024657,2]
[381631019,1756299125846,-480.0,0.00024657,2]
[381631020,1756299125856,-480.0,0.00024657,2]
[381631021,1756299125866,-789.18,0.00024657,2]
[381631022,1756299125876,-685.55,0.00024657,2]
[381631023,1756299125886,-2224.28,0.00024657,2]
[381631024,1756299125895,-480.0,0.00024657,2]
[381631025,1756299125905,-622.18,0.00024657,2]
[381631026,1756299125915,-1015.89,0.00024657,2]
[381631027,1756299125924,-480.0,0.00024657,2]
[381631028,1756299125934,-480.0,0.00024657,2]
[381631029,1756299125947,-1801.64,0.00024657,2]
[381631030,1756299125957,-631.08,0.00024657,2]
[381631031,1756299125967,-678.47,0.00024657,2]
[381631032,1756299125976,-480.0,0.00024657,2]
[381631033,1756299125986,-908.23,0.00024657,2]
[381631034,1756299125996,-698.69,0.00024657,2]
[381631035,1756299126005,-480.0,0.00024657,2]
[381631036,1756299126015,-2888.9,0.00024657,2]
[381631037,1756299126025,-480.0,0.00024657,2]
[381631038,1756299126034,-901.06,0.00024657,2]
[381631039,1756299126044,-480.0,0.00024657,2]
[381631040,1756299126054,-480.0,0.00024657,2]
[381631041,1756299126063,-1290.3,0.00024657,2]
[381631042,1756299126072,-1110.35,0.00024657,2]
[381631043,1756299126081,-911.51,0.00024657,2]
[381631044,1756299126093,-711.28,0.00024657,2]
[381631045,1756299126103,-492.57,0.00024657,2]
[381631046,1756299126116,-650.0,0.00024658,2]
[381631047,1756299126126,-150.0,0.00024658,2]
[381631048,1756299126136,-380.0,0.00024658,2]
[381631049,1756299126145,-151.0,0.00024658,7]
[381631050,1756299126155,-264.936472,0.00024658,7]
[381631051,1756299126164,-226.23595338,0.00024658,2]
[381631052,1756299126173,-500.0,0.00024658,2]
[381631053,1756299126182,-76347.57,0.000247,7]
[381631054,1756299126193,-14002.95,0.000247,2]
[381631055,1756299126203,-155.56118263,0.00024712,3]
[381631056,1756299126213,-1661.6179306,0.00024789,2]
[381631057,1756299126222,-497470.293574,0.000249,2]
[381631058,1756299126232,-3429.11361624,0.00024905,2]
[381631059,1756299126242,-1015.0,0.00024928,2]
[381631060,1756299126250,-480.0,0.00024931,2]
[381631061,1756299126259,-480.0,0.00024931,2]
[381631062,1756299126268,-480.0,0.00024931,2]
[381631063,1756299126277,-480.0,0.00024931,2]
[381631064,1756299126286,-480.0,0.00024931,2]
[381631065,1756299126295,-493.86,0.00024931,2]
[381631066,1756299126304,-229.43219548,0.00024931,2]
[381631067,1756299126313,-480.0,0.00024931,2]
[381631068,1756299126322,-480.0,0.00024931,2]
[381631069,1756299126332,-562.7,0.00024931,2]
[381631070,1756299126341,-524.95,0.00024931,2]
[381631071,1756299126351,-480.0,0.00024931,2]
[381631072,1756299126360,-538.52,0.00024931,2]
[381631073,1756299126370,-550.62,0.00024931,2]
[381631074,1756299126379,-480.0,0.00024931,2]
[381631075,1756299126388,-480.0,0.00024931,2]
[381631076,1756299126397,-576.16,0.00024931,2]
[381631077,1756299126407,-662.66,0.00024931,2]
[381631078,1756299126416,-582.51,0.00024931,2]
[381631079,1756299126425,-480.0,0.00024931,2]
[381631080,1756299126435,-500.0,0.00024931,2]
[381631081,1756299126446,-480.0,0.00024931,2]
[381631082,1756299126455,-480.0,0.00024931,2]
[381631083,1756299126465,-606.2,0.00024931,2]
[381631084,1756299126474,-706.9,0.00024931,2]
[381631085,1756299126483,-480.0,0.00024931,2]
[381631086,1756299126493,-882.63,0.00024931,2]
[381631087,1756299126502,-343.41182359,0.00024931,2]
[381631088,1756299126511,-480.0,0.00024931,2]
[381631089,1756299126520,-714.33,0.00024931,2]